fUST/lending_fUST_20251210
["ID","MTS","AMOUNT","RATE_DAILY","PERIOD"]
[398025294,1765302632075,-222.0,8.42e-05,2]
[398025295,1765302632084,-154.9,8.6e-05,2]
[398025296,1765302632094,-347.30356795,8.604e-05,2]
[398025297,1765302632103,-150.0,8.622e-05,2]
[398025298,1765302632112,-230.64717276,8.855e-05,2]
[398025299,1765302632122,-242.72316832,8.89e-05,2]
[398025300,1765302632131,-154.9,9.1e-05,2]
[398025301,1765302632141,-150.0,9.285e-05,2]
[398025302,1765302632150,-230.64717276,9.545e-05,2]
[398025303,1765302632159,-154.9,9.6e-05,2]
[398025304,1765302632171,-279.52646917,9.928e-05,2]
[398025305,1765302632181,-150.0,9.949e-05,2]
[398025306,1765302632190,-10000.0,0.0001,2]
[398025307,1765302632199,-154.9,0.000101,2]
[398025308,1765302632208,-230.64717276,0.00010235,2]
[398025309,1765302632217,-154.9,0.000106,2]
[398025310,1765302632227,-150.0,0.00010612,2]
[398025311,1765302632236,-279.74873637,0.0001089,2]
[398025312,1765302632246,-230.87781993,0.00010925,2]
[398025313,1765302632255,-154.9,0.000111,2]
[398025314,1765302632264,-150.0,0.00011275,2]
[398025315,1765302632273,-1000.0,0.000114,2]
[398025316,1765302632282,-1000.0,0.000114,2]
[398025317,1765302632292,-1000.0,0.000114,2]
[398025318,1765302632301,-1000.0,0.000114,2]
[398025319,1765302632311,-1000.0,0.000114,2]
[398025320,1765302632321,-1000.0,0.000114,2]
[398025321,1765302632330,-1000.0,0.000114,2]
[398025322,1765302632340,-1000.0,0.000114,2]
[398025323,1765302632349,-1000.0,0.000114,2]
[398025324,1765302632360,-1000.0,0.000114,2]
[398025325,1765302632371,-498.05014,0.000114,2]
[398025326,1765302632387,-300.0,0.00012213,2]
[398025327,1765302632397,-300.0,0.00012213,2]
[398025328,1765302632406,-300.0,0.00012213,2]
[398025329,1765302632416,-300.0,0.00012213,2]
[398025330,1765302632426,-300.0,0.00012213,2]
[398025331,1765302632435,-300.0,0.00012213,2]
[398025332,1765302632446,-300.0,0.00012213,2]
[398025333,1765302632457,-300.0,0.00012213,2]
[398025334,1765302632466,-300.0,0.00012213,2]
[398025335,1765302632476,-300.0,0.00012213,2]
[398025336,1765302632485,-300.0,0.00012213,2]
[398025337,1765302632495,-300.0,0.00012213,2]
[398025338,1765302632504,-316.77430442,0.00012891,2]
[398025339,1765302632514,-186.11229473,0.00013598,2]
[398025340,1765302632523,-500.0,0.00013698,2]
[398025341,1765302632533,-500.0,0.00013698,2]
[398025342,1765302632542,-500.0,0.00013698,2]
[398025343,1765302632552,-500.0,0.00013698,2]
[398025344,1765302632560,-716.89,0.00013698,2]
[398025345,1765302632569,-500.0,0.00013698,2]
[398025346,1765302632578,-500.0,0.00013698,2]
[398025347,1765302632587,-500.0,0.00013698,2]
[398025348,1765302632596,-500.0,0.00013698,2]
[398025349,1765302632605,-151.0,0.00013698,2]
[398025350,1765302632615,-500.0,0.00013698,2]
[398025351,1765302632625,-258.38552,0.00013699,2]
[398025352,1765302632634,-500.0,0.00013699,2]
[398025353,1765302632643,-500.0,0.00013835,2]
[398025354,1765302632653,-500.0,0.00013972,2]
[398025355,1765302632662,-500.0,0.00014109,2]
[398025356,1765302632671,-198.36489375,0.00014246,2]
[398025357,1765302632680,-1000.0,0.00014247,2]
[398025358,1765302632689,-1500.0,0.00014795,2]
[398025359,1765302632698,-353.79987247,0.00014891,2]
[398025360,1765302632707,-159.747966,0.00015068,2]
[398025361,1765302632716,-2000.0,0.00015342,2]
[398025362,1765302632726,-631.0,0.00015779,2]
[398025363,1765302632735,-2155.0,0.00015779,2]
[398025364,1765302632744,-2500.0,0.0001589,2]
[398025365,1765302632753,-857.53618594,0.00016338,2]
[398025384,1765302637993,-397.41534587,0.00013697,2]
[398025385,1765302638003,-500.0,0.00013697,2]
[398025386,1765302638012,-226.42065413,0.00013698,2]
[398025387,1765302638047,-251.57934587,0.00013698,2]
[398025388,1765302638056,-478.0,0.00013835,2]
[398025389,1765302638066,-232.1344488,0.00013972,2]
[398025390,1765302638078,-245.8655512,0.00013972,2]
[398025391,1765302638088,-478.0,0.00014109,2]
[398025392,1765302638098,-478.0,0.00014246,2]
[398025393,1765302638107,-478.0,0.00014383,2]
[398025394,1765302638117,-23.58530873,0.0001452,2]
[398025395,1765302638128,-454.41469127,0.0001452,2]
[398025396,1765302638138,-478.0,0.00014657,2]
[398025397,1765302638148,-478.0,0.00014794,2]
[398025398,1765302638157,-32.32080007,0.00014931,2]
[398025399,1765302638170,-445.67919993,0.00014931,2]
[398025400,1765302638182,-478.0,0.00015068,2]
[398025401,1765302638191,-478.0,0.00015205,2]
[398025402,1765302638201,-478.0,0.00015342,2]
[398025403,1765302638212,-478.0,0.00015479,2]
[398025404,1765302638221,-478.0,0.00015616,2]
[398025405,1765302638231,-478.0,0.00015753,2]
[398025406,1765302638241,-415.0,0.00015779,2]
[398025407,1765302638251,-4124.00223374,0.00016338,2]
[398025408,1765302638260,-503.70999083,0.00016339,2]
[398025409,1765302638270,-604.16511405,0.00016339,2]
[398025410,1765302638279,-503.70999083,0.00016339,2]
[398025411,1765302638289,-503.70999083,0.00016339,2]
[398025412,1765302638299,-503.70999083,0.00016339,2]
[398025413,1765302638309,-503.70999083,0.00016339,2]
[398025414,1765302638319,-503.70999083,0.00016339,2]
[398025415,1765302638328,-503.70999083,0.00016339,2]
[398025416,1765302638337,-503.70999083,0.00016339,2]
[398025417,1765302638346,-503.70999083,0.00016339,2]
[398025418,1765302638356,-503.70999083,0.00016339,2]
[398025419,1765302638366,-503.70999083,0.00016339,2]
[398025420,1765302638378,-503.70999083,0.00016339,2]
[398025421,1765302638388,-503.70999083,0.00016339,2]
[398025422,1765302638398,-503.70999083,0.00016339,2]
[398025423,1765302638407,-503.70999083,0.00016339,2]
[398025424,1765302638418,-503.70999083,0.00016339,2]
[398025425,1765302638428,-503.70999083,0.00016339,2]
[398025426,1765302638438,-503.70999083,0.00016339,2]
[398025427,1765302638447,-10576.39502282,0.0001634,2]
[398025428,1765302638461,-435.0,0.0001634,2]
[398025429,1765302638472,-2270.36341561,0.0001634,2]
[398025430,1765302638483,-2472.99554256,0.0001634,2]
[398025444,1765302640106,-478.0,0.0001589,2]
[398025445,1765302640117,-50.89051107,0.00016027,2]
[398025446,1765302640128,-427.10948893,0.00016027,2]
[398025447,1765302640138,-463.69374574,0.0001634,2]
[398025448,1765302640149,-310.27,0.0001634,2]
[398025449,1765302640160,-733.73686278,0.0001634,2]
[398025455,1765302640374,-8890.0,0.0001634,2]
[398025496,1765302643793,-478.0,0.00016164,2]
[398025497,1765302643803,-716741.49931063,0.0001634,2]
[398025498,1765302643813,-160.0,0.00016404,2]
[398025499,1765302643823,-500.0,0.00016437,2]
[398025500,1765302643832,-500.0,0.00016437,2]
[398025501,1765302643842,-500.0,0.00016437,2]
[398025502,1765302643853,-500.0,0.00016437,2]
[398025503,1765302643862,-151.0,0.00016438,2]
[398025504,1765302643871,-151.0,0.00016438,2]
[398025505,1765302643880,-226.48263279,0.00016438,2]
[398025506,1765302643890,-500.0,0.00016438,2]
[398025507,1765302643899,-151.0,0.00016438,2]
[398025508,1765302643908,-151.51305539,0.00016438,2]
[398025509,1765302643918,-285.96888481,0.00016438,2]
[398025510,1765302643928,-3000.0,0.00016438,2]
[398025511,1765302643946,-319.0,0.00016466,3]
[398025512,1765302643958,-2000.0,0.00016499,3]
[398025513,1765302643967,-500.0,0.00016575,2]
[398025514,1765302643977,-500.0,0.00016712,2]
[398025515,1765302643986,-340.74100415,0.00016849,2]
[398025516,1765302643996,-390.82544052,0.00016891,2]
[398025517,1765302644007,-260.0,0.00016952,2]
[398025518,1765302644016,-3500.0,0.00016986,2]
[398025519,1765302644026,-332.0,0.00017219,2]
[398025520,1765302644036,-401.0,0.00017382,2]
[398025521,1765302644046,-360.0,0.00017499,2]
[398025522,1765302644056,-716.89,0.00017533,2]
[398025523,1765302644065,-4000.0,0.00017534,2]
[398025524,1765302644075,-398.1915333,0.00017555,2]
[398025525,1765302644084,-41748.96,0.000178,3]
[398025526,1765302644094,-656.905134,0.000178,2]
[398025527,1765302644104,-656.905134,0.000178,2]
[398025528,1765302644114,-151.0,0.000178,2]
[398025529,1765302644123,-151.0,0.000178,2]
[398025530,1765302644132,-151.0,0.000178,2]
[398025531,1765302644142,-656.905134,0.000178,2]
[398025532,1765302644151,-151.0,0.000178,2]
[398025533,1765302644161,-1081.291374,0.000178,2]
[398025534,1765302644171,-151.0,0.000178,2]
[398025535,1765302644181,-656.905134,0.000178,2]
[398025536,1765302644190,-1081.291374,0.000178,2]
[398025537,1765302644200,-1081.291374,0.000178,2]
[398025538,1765302644209,-1081.291374,0.000178,2]
[398025539,1765302644219,-347.30356795,0.00017857,3]
[398025540,1765302644229,-460.0,0.00018047,2]
[398025541,1765302644239,-499.2075166,0.00018057,2]
[398025542,1765302644249,-4500.0,0.00018082,2]
[398025543,1765302644259,-151.0,0.00018157,2]
[398025544,1765302644269,-151.0,0.00018157,2]
[398025545,1765302644279,-151.0,0.00018157,2]
[398025546,1765302644289,-151.0,0.00018157,2]
[398025547,1765302644299,-172.659327,0.00018157,2]
[398025548,1765302644308,-151.0,0.00018157,2]
[398025549,1765302644318,-172.659327,0.00018157,2]
[398025550,1765302644328,-172.659327,0.00018157,2]
[398025551,1765302644338,-172.659327,0.00018157,2]
[398025552,1765302644348,-151.800982,0.00018157,2]
[398025553,1765302644358,-259.325539,0.00018157,2]
[398025554,1765302644367,-259.325539,0.00018157,2]
[398025555,1765302644380,-151.0,0.00018157,2]
[398025556,1765302644390,-259.325539,0.00018157,2]
[398025557,1765302644400,-259.325539,0.00018157,2]
[398025558,1765302644409,-151.0,0.00018157,2]
[398025559,1765302644419,-151.0,0.00018157,2]
[398025560,1765302644429,-151.0,0.00018157,2]
[398025561,1765302644439,-151.0,0.00018157,2]
[398025562,1765302644448,-196.238409,0.00018157,2]
[398025563,1765302644460,-196.238409,0.00018157,2]
[398025564,1765302644470,-202.13816,0.00018157,2]
[398025565,1765302644482,-196.238409,0.00018157,2]
[398025566,1765302644498,-202.13816,0.00018157,2]
[398025567,1765302644508,-196.238409,0.00018157,2]
[398025568,1765302644519,-202.13816,0.00018157,2]
[398025569,1765302644529,-202.13816,0.00018157,2]
[398025570,1765302644802,-151.0,0.00018157,2]
[398025571,1765302644812,-151.0,0.00018157,2]
[398025572,1765302644822,-508.260792,0.00018157,2]
[398025573,1765302644832,-508.260792,0.00018157,2]
[398025574,1765302644842,-508.260792,0.00018157,2]
[398025575,1765302644851,-508.260792,0.00018157,2]
[398025576,1765302644861,-151.0,0.00018157,2]
[398025577,1765302644871,-151.0,0.00018157,2]
[398025578,1765302644880,-151.0,0.00018157,2]
[398025579,1765302644890,-151.0,0.00018157,2]
[398025580,1765302644899,-151.0,0.00018157,2]
[398025581,1765302644909,-151.0,0.00018157,2]
[398025582,1765302644918,-151.0,0.00018157,2]
[398025583,1765302644928,-151.0,0.00018157,2]
[398025584,1765302644937,-560.964267,0.00018157,2]
[398025585,1765302644947,-560.964267,0.00018157,2]
[398025586,1765302644956,-361.143071,0.00018157,2]
[398025587,1765302644965,-560.964267,0.00018157,2]
[398025588,1765302644975,-361.143071,0.00018157,2]
[398025589,1765302644984,-560.964267,0.00018157,2]
[398025590,1765302644993,-361.143071,0.00018157,2]
[398025591,1765302645004,-151.0,0.00018157,2]
[398025592,1765302645014,-361.143071,0.00018157,2]
[398025593,1765302645023,-151.0,0.00018157,2]
[398025594,1765302645032,-174.286222,0.00018157,2]
[398025595,1765302645041,-174.286222,0.00018157,2]
[398025596,1765302645050,-174.286222,0.00018157,2]
[398025597,1765302645059,-174.286222,0.00018157,2]
[398025598,1765302645068,-235.981408,0.00018157,2]
[398025599,1765302645078,-235.981408,0.00018157,2]
[398025600,1765302645088,-235.981408,0.00018157,2]
[398025601,1765302645098,-235.981408,0.00018157,2]
[398025602,1765302645107,-151.0,0.00018157,2]
[398025603,1765302645116,-235.237265,0.00018157,2]
[398025604,1765302645126,-151.0,0.00018157,2]
[398025605,1765302645135,-235.237265,0.00018157,2]
[398025606,1765302645144,-229.648628,0.00018157,2]
[398025607,1765302645154,-235.237265,0.00018157,2]
[398025608,1765302645163,-235.237265,0.00018157,2]
[398025609,1765302645173,-227.291824,0.00018157,2]
[398025610,1765302645182,-329.167592,0.00018157,2]
[398025611,1765302645191,-329.167592,0.00018157,2]
[398025612,1765302645201,-329.167592,0.00018157,2]
[398025613,1765302645210,-329.167592,0.00018157,2]
[398025614,1765302645221,-250.066685,0.00018157,2]
[398025615,1765302645231,-250.066685,0.00018157,2]
[398025616,1765302645240,-250.066685,0.00018157,2]
[398025617,1765302645250,-250.066685,0.00018157,2]
[398025618,1765302645260,-161.090771,0.00018157,2]
[398025619,1765302645269,-161.090771,0.00018157,2]
[398025620,1765302645278,-161.090771,0.00018157,2]
[398025621,1765302645287,-161.090771,0.00018157,2]
[398025622,1765302645296,-875.408248,0.00018157,2]
[398025623,1765302645306,-875.408248,0.00018157,2]
[398025624,1765302645316,-875.408248,0.00018157,2]
[398025625,1765302645325,-875.408248,0.00018157,2]
[398025626,1765302645334,-280.112833,0.00018157,2]
[398025627,1765302645343,-151.0,0.00018157,2]
[398025628,1765302645353,-280.112833,0.00018157,2]
[398025629,1765302645362,-280.112833,0.00018157,2]
[398025630,1765302645372,-280.112833,0.00018157,2]
[398025631,1765302645384,-151.0,0.00018157,2]
[398025632,1765302645393,-151.0,0.00018157,2]
[398025633,1765302645403,-151.0,0.00018157,2]
[398025634,1765302645412,-151.0,0.00018157,2]
[398025635,1765302645422,-151.0,0.00018157,2]
[398025636,1765302645432,-196.215346,0.00018157,2]
[398025637,1765302645441,-291.943704,0.00018157,2]
[398025638,1765302645450,-291.943704,0.00018157,2]
[398025639,1765302645461,-151.0,0.00018157,2]
[398025640,1765302645470,-291.943704,0.00018157,2]
[398025641,1765302645479,-176.537843,0.00018157,2]
[398025642,1765302645488,-291.943704,0.00018157,2]
[398025643,1765302645499,-176.537843,0.00018157,2]
[398025644,1765302645508,-176.537843,0.00018157,2]
[398025646,1765302645518,-176.537843,0.00018157,2]
[398025648,1765302645527,-151.547957,0.00018157,2]
[398025649,1765302645536,-228.631966,0.00018157,2]
[398025650,1765302645545,-151.0,0.00018157,2]
[398025651,1765302645554,-151.0,0.00018157,2]
[398025652,1765302645563,-151.0,0.00018157,2]
[398025653,1765302645573,-151.0,0.00018157,2]
[398025654,1765302645584,-174.867089,0.00018157,2]
[398025655,1765302645594,-151.0,0.00018157,2]
[398025656,1765302645603,-174.867089,0.00018157,2]
[398025657,1765302645613,-151.0,0.00018157,2]
[398025658,1765302645623,-174.867089,0.00018157,2]
[398025659,1765302645632,-202.471472,0.00018157,2]
[398025660,1765302645642,-174.867089,0.00018157,2]
[398025661,1765302645651,-222.495628,0.00018157,2]
[398025662,1765302645660,-151.0,0.00018157,2]
[398025663,1765302645670,-222.495628,0.00018157,2]
[398025664,1765302645679,-222.495628,0.00018157,2]
[398025665,1765302645689,-356.157462,0.00018157,2]
[398025666,1765302645698,-222.495628,0.00018157,2]
[398025667,1765302645707,-356.157462,0.00018157,2]
[398025668,1765302645717,-151.0,0.00018157,2]
[398025669,1765302645726,-151.0,0.00018157,2]
[398025670,1765302645735,-356.157462,0.00018157,2]
[398025671,1765302645744,-356.157462,0.00018157,2]
[398025672,1765302645754,-151.0,0.00018157,2]
[398025673,1765302645764,-151.0,0.00018157,2]
[398025674,1765302645774,-151.0,0.00018157,2]
[398025675,1765302645784,-151.0,0.00018157,2]
[398025676,1765302645793,-151.0,0.00018157,2]
[398025677,1765302645803,-381.563495,0.00018157,2]
[398025678,1765302645813,-381.563495,0.00018157,2]
[398025679,1765302645823,-381.563495,0.00018157,2]
[398025680,1765302645832,-381.563495,0.00018157,2]
[398025681,1765302645842,-409.17794,0.00018157,2]
[398025682,1765302645851,-151.0,0.00018157,2]
[398025683,1765302645860,-409.17794,0.00018157,2]
[398025684,1765302645869,-409.17794,0.00018157,2]
[398025686,1765302645879,-409.17794,0.00018157,2]
[398025687,1765302645888,-422.590346,0.00018157,2]
[398025688,1765302645898,-603.896021,0.00018157,2]
[398025689,1765302645908,-422.590346,0.00018157,2]
[398025690,1765302645917,-603.896021,0.00018157,2]
[398025691,1765302645926,-422.590346,0.00018157,2]
[398025692,1765302645936,-603.896021,0.00018157,2]
[398025693,1765302645945,-422.590346,0.00018157,2]
[398025694,1765302645954,-603.896021,0.00018157,2]
[398025695,1765302645964,-239.177355,0.00018157,2]
[398025696,1765302645973,-239.177355,0.00018157,2]
[398025697,1765302645982,-239.177355,0.00018157,2]
[398025698,1765302645991,-656.905134,0.00018157,2]
[398025699,1765302646001,-239.177355,0.00018157,2]
[398025700,1765302646010,-656.905134,0.00018157,2]
[398025701,1765302646019,-151.0,0.00018157,2]
[398025702,1765302646029,-151.0,0.00018157,2]
[398025703,1765302646038,-151.0,0.00018157,2]
[398025704,1765302646047,-151.0,0.00018157,2]
[398025705,1765302646056,-656.905134,0.00018157,2]
[398025706,1765302646066,-1081.291374,0.00018157,2]
[398025707,1765302646075,-656.905134,0.00018157,2]
[398025708,1765302646084,-1081.291374,0.00018157,2]
[398025709,1765302646093,-1081.291374,0.00018157,2]
[398025710,1765302646102,-1081.291374,0.00018157,2]
[398025711,1765302646112,-499.20751657,0.00018413,2]
[398025712,1765302646121,-159.747966,0.00018493,2]
[398025713,1765302646130,-183.38007917,0.00018535,2]
[398025714,1765302646140,-330.08414251,0.00018535,2]
[398025715,1765302646149,-586.81625334,0.00018535,2]
[398025716,1765302646159,-560.0,0.00018595,2]
[398025717,1765302646168,-4500.0,0.0001863,2]
[398025718,1765302646178,-499.20751657,0.0001877,2]
[398025719,1765302646188,-415.0,0.00018779,2]
[398025720,1765302646197,-427.85100857,0.00018891,2]
[398025721,1765302646207,-302.90913937,0.000189,2]
[398025722,1765302646216,-908.8631631,0.00018924,2]
[398025723,1765302646226,-1000.0,0.00018925,5]
[398025724,1765302646235,-2000.0,0.00018928,3]
[398025725,1765302646244,-2000.0,0.00018991,3]
[398025726,1765302646254,-4412.63679104,0.00018992,7]
[398025727,1765302646263,-8365.36114468,0.00018992,7]
[398025728,1765302646272,-270.39707713,0.00018992,7]
[398025729,1765302646282,-508.44648659,0.00018992,7]
[398025730,1765302646291,-222.495628,0.00018992,2]
[398025731,1765302646300,-151.0,0.00018992,2]
[398025732,1765302646310,-222.495628,0.00018992,2]
[398025733,1765302646320,-222.495628,0.00018992,2]
[398025734,1765302646329,-356.157462,0.00018992,2]
[398025735,1765302646338,-222.495628,0.00018992,2]
[398025736,1765302646347,-356.157462,0.00018992,2]
[398025737,1765302646357,-356.157462,0.00018992,2]
[398025738,1765302646367,-356.157462,0.00018992,2]
[398025739,1765302646379,-151.0,0.00018992,2]
[398025740,1765302646388,-151.0,0.00018992,2]
[398025741,1765302646397,-381.563495,0.00018992,2]
[398025742,1765302646407,-381.563495,0.00018992,2]
[398025743,1765302646417,-381.563495,0.00018992,2]
[398025744,1765302646430,-381.563495,0.00018992,2]
[398025745,1765302646440,-409.17794,0.00018992,2]
[398025746,1765302646451,-151.0,0.00018992,2]
[398025747,1765302646462,-409.17794,0.00018992,2]
[398025748,1765302646474,-409.17794,0.00018992,2]
[398025749,1765302646483,-409.17794,0.00018992,2]
[398025750,1765302646494,-422.590346,0.00018992,2]
[398025751,1765302646503,-603.896021,0.00018992,2]
[398025752,1765302646514,-422.590346,0.00018992,2]
[398025753,1765302646524,-603.896021,0.00018992,2]
[398025754,1765302646534,-422.590346,0.00018992,2]
[398025755,1765302646544,-603.896021,0.00018992,2]
[398025756,1765302646554,-422.590346,0.00018992,2]
[398025757,1765302646563,-603.896021,0.00018992,2]
[398025758,1765302646574,-239.177355,0.00018992,2]
[398025759,1765302646584,-239.177355,0.00018992,2]
[398025760,1765302646592,-239.177355,0.00018992,2]
[398025761,1765302646602,-239.177355,0.00018992,2]
[398025762,1765302646611,-347.30356795,0.00019,7]
[398025763,1765302646621,-236.0,0.00019023,2]
[398025764,1765302646630,-2045.13097217,0.00019056,2]
[398025765,1765302646639,-302.90913937,0.00019089,2]
[398025766,1765302646649,-499.20751657,0.00019126,2]
[398025767,1765302646658,-660.0,0.00019143,2]
[398025768,1765302646667,-823.08976841,0.00019161,2]
[398025769,1765302646676,-280.112833,0.00019178,2]
[398025770,1765302646686,-151.0,0.00019178,2]
[398025771,1765302646696,-280.112833,0.00019178,2]
[398025772,1765302646706,-280.112833,0.00019178,2]
[398025773,1765302646715,-280.112833,0.00019178,2]
[398025774,1765302646725,-151.0,0.00019178,2]
[398025775,1765302646734,-151.0,0.00019178,2]
[398025776,1765302646744,-291.943704,0.00019178,2]
[398025777,1765302646753,-291.943704,0.00019178,2]
[398025778,1765302646762,-151.0,0.00019178,2]
[398025779,1765302646772,-291.943704,0.00019178,2]
[398025780,1765302646782,-176.537843,0.00019178,2]
[398025781,1765302646791,-291.943704,0.00019178,2]
[398025782,1765302646800,-176.537843,0.00019178,2]
[398025783,1765302646810,-176.537843,0.00019178,2]
[398025784,1765302646819,-176.537843,0.00019178,2]
[398025785,1765302646829,-151.0,0.00019178,2]
[398025786,1765302646839,-151.0,0.00019178,2]
[398025787,1765302646848,-210.560851,0.00019178,2]
[398025788,1765302646857,-151.0,0.00019178,2]
[398025789,1765302646866,-174.867089,0.00019178,2]
[398025790,1765302646876,-151.0,0.00019178,2]
[398025791,1765302646885,-174.867089,0.00019178,2]
[398025792,1765302646895,-151.0,0.00019178,2]
[398025793,1765302646904,-174.867089,0.00019178,2]
[398025794,1765302646914,-174.867089,0.00019178,2]
[398025795,1765302646923,-234.26739,0.00019178,2]
[398025796,1765302646933,-151.0,0.00019178,2]
[398025797,1765302646942,-151.0,0.00019178,2]
[398025798,1765302646952,-255.082112,0.00019178,2]
[398025799,1765302646960,-656.905134,0.00019178,2]
[398025800,1765302646970,-656.905134,0.00019178,2]
[398025801,1765302646981,-151.0,0.00019178,2]
[398025802,1765302646991,-151.0,0.00019178,2]
[398025803,1765302647001,-151.0,0.00019178,2]
[398025804,1765302647011,-151.0,0.00019178,2]
[398025805,1765302647020,-656.905134,0.00019178,2]
[398025806,1765302647030,-1081.291374,0.00019178,2]
[398025807,1765302647039,-656.905134,0.00019178,2]
[398025808,1765302647048,-1081.291374,0.00019178,2]
[398025809,1765302647057,-1081.291374,0.00019178,2]
[398025810,1765302647066,-1081.291374,0.00019178,2]
[398025811,1765302647076,-5000.0,0.00019178,2]
[398025812,1765302647086,-151.0,0.00019178,2]
[398025813,1765302647096,-185.348712,0.00019178,2]
[398025814,1765302647107,-329.167592,0.00019179,2]
[398025815,1765302647118,-329.167592,0.00019179,2]
[398025816,1765302647128,-329.167592,0.00019179,2]
[398025817,1765302647139,-329.167592,0.00019179,2]
[398025818,1765302647150,-250.066685,0.00019179,2]
[398025819,1765302647160,-250.066685,0.00019179,2]
[398025820,1765302647171,-250.066685,0.00019179,2]
[398025821,1765302647183,-250.066685,0.00019179,2]
[398025822,1765302647194,-161.090771,0.00019179,2]
[398025823,1765302647204,-161.090771,0.00019179,2]
[398025824,1765302647214,-161.090771,0.00019179,2]
[398025825,1765302647224,-161.090771,0.00019179,2]
[398025826,1765302647235,-875.408248,0.00019179,2]
[398025827,1765302647245,-875.408248,0.00019179,2]
[398025828,1765302647255,-875.408248,0.00019179,2]
[398025829,1765302647265,-875.408248,0.00019179,2]
[398025830,1765302647276,-151.0,0.00019179,2]
[398025831,1765302647287,-151.0,0.00019179,2]
[398025832,1765302647297,-151.0,0.00019179,2]
[398025833,1765302647307,-500.0,0.00019187,2]
[398025834,1765302647317,-500.0,0.00019187,2]
[398025835,1765302647327,-500.0,0.00019187,2]
[398025836,1765302647337,-500.0,0.00019187,2]
[398025837,1765302647346,-500.0,0.00019188,2]
[398025838,1765302647355,-500.0,0.00019188,2]
[398025839,1765302647365,-500.0,0.00019188,2]
[398025840,1765302647375,-500.0,0.00019188,2]
[398025841,1765302647388,-2000.0,0.00019188,3]
[398025842,1765302647398,-716.89,0.00019189,2]
[398025843,1765302647408,-500.0,0.0001919,2]
[398025844,1765302647418,-500.0,0.0001919,2]
[398025845,1765302647430,-500.0,0.0001919,2]
[398025846,1765302647440,-500.0,0.0001919,2]
[398025847,1765302647449,-560.964267,0.0001919,2]
[398025848,1765302647459,-560.964267,0.0001919,2]
[398025849,1765302647469,-361.143071,0.0001919,2]
[398025850,1765302647480,-560.964267,0.0001919,2]
[398025851,1765302647490,-361.143071,0.0001919,2]
[398025852,1765302647501,-560.964267,0.0001919,2]
[398025853,1765302647511,-361.143071,0.0001919,2]
[398025854,1765302647520,-151.0,0.0001919,2]
[398025855,1765302647531,-361.143071,0.0001919,2]
[398025856,1765302647542,-151.0,0.0001919,2]
[398025857,1765302647552,-174.286222,0.0001919,2]
[398025858,1765302647563,-174.286222,0.0001919,2]
[398025859,1765302647573,-174.286222,0.0001919,2]
[398025860,1765302647584,-174.286222,0.0001919,2]
[398025861,1765302647596,-235.981408,0.0001919,2]
[398025862,1765302647606,-235.981408,0.0001919,2]
[398025863,1765302647617,-235.981408,0.0001919,2]
[398025864,1765302647627,-235.981408,0.0001919,2]
[398025865,1765302647638,-151.0,0.0001919,2]
[398025866,1765302647648,-235.237265,0.0001919,2]
[398025867,1765302647659,-151.0,0.0001919,2]
[398025868,1765302647669,-235.237265,0.0001919,2]
[398025869,1765302647679,-235.237265,0.0001919,2]
[398025870,1765302647690,-235.237265,0.0001919,2]
[398025871,1765302647699,-2000.0,0.0001919,3]
[398025872,1765302647709,-151.0,0.0001919,3]